[Event "Titled Tuesday Blitz December 13 Late 2022"]
[White "Vargas, Mauricio"]
[Black "Bulgurlu, Okan"]
[WhiteFideId "4404572"]
[BlackFideId "6352316"]
[WhiteElo "2025"]
[BlackElo "2220"]
[Result "0-1"]
[Round "05"]
[TimeControl "180+1"]
[Date "2022.12.14"]
[WhiteClock "0:00:01"]
[BlackClock "0:00:18"]

1. e4 {[%clk 0:03:00]}  c5 {[%clk 0:02:58]} 2. Nc3 {[%clk 0:02:59]}  Nc6 {[%clk 0:02:57]} 3. f4 {[%clk 0:03:00]}  e6 {[%clk 0:02:58]} 4. Nf3 {[%clk 0:02:57]}  g6 {[%clk 0:02:59]} 5. Bb5 {[%clk 0:02:49]}  Bg7 {[%clk 0:02:57]} 6. O-O {[%clk 0:02:46]}  Nge7 {[%clk 0:02:55]} 7. d3 {[%clk 0:02:42]}  O-O {[%clk 0:02:54]} 8. Ne2 {[%clk 0:02:36]}  Nd4 {[%clk 0:02:54]} 9. Ba4 {[%clk 0:02:29]}  a6 {[%clk 0:02:50]} 10. c3 {[%clk 0:02:27]}  Nxf3+ {[%clk 0:02:40]} 11. Rxf3 {[%clk 0:02:25]}  b5 {[%clk 0:02:41]} 12. Bb3 {[%clk 0:02:18]}  Bb7 {[%clk 0:02:42]} 13. Rh3 {[%clk 0:02:13]}  d5 {[%clk 0:02:39]} 14. e5 {[%clk 0:02:11]}  f6 {[%clk 0:02:29]} 15. exf6 {[%clk 0:02:06]}  Rxf6 {[%clk 0:02:28]} 16. Qe1 {[%clk 0:02:03]}  Qb6 {[%clk 0:02:21]} 17. Kh1 {[%clk 0:02:00]}  Raf8 {[%clk 0:02:20]} 18. Qh4 {[%clk 0:01:53]}  h6 {[%clk 0:02:03]} 19. Bd2 {[%clk 0:01:51]}  c4 {[%clk 0:01:37]} 20. Bc2 {[%clk 0:01:46]}  e5 {[%clk 0:01:37]} 21. Rf3 {[%clk 0:01:17]}  cxd3 {[%clk 0:01:24]} 22. Bxd3 {[%clk 0:01:16]}  e4 {[%clk 0:01:25]} 23. Be3 {[%clk 0:01:09]}  Qe6 {[%clk 0:01:17]} 24. Nd4 {[%clk 0:01:05]}  Qc8 {[%clk 0:01:13]} 25. Re1 {[%clk 0:00:47]}  exf3 {[%clk 0:01:10]} 26. gxf3 {[%clk 0:00:45]}  Qb8 {[%clk 0:00:53]} 27. f5 {[%clk 0:00:38]}  g5 {[%clk 0:00:40]} 28. Qf2 {[%clk 0:00:28]}  Bc8 {[%clk 0:00:38]} 29. h4 {[%clk 0:00:14]}  Nxf5 {[%clk 0:00:31]} 30. hxg5 {[%clk 0:00:09]}  hxg5 {[%clk 0:00:27]} 31. Nc6 {[%clk 0:00:04]}  Rh6+ {[%clk 0:00:23]} 32. Kg2 {[%clk 0:00:01]}  Qh2+ {[%clk 0:00:19]} 33. Kf1 {[%clk 0:00:01]}  Ng3+ {[%clk 0:00:18]} 0-1


[Site "https://www.chess.com"]

[Event "Titled Tuesday Blitz December 13 Late 2022"]
[White "Xiong, Jeffery"]
[Black "Erdogdu, Mert"]
[WhiteFideId "2047640"]
[BlackFideId "6301495"]
[WhiteElo "2726"]
[BlackElo "2408"]
[Result "1-0"]
[Round "05"]
[TimeControl "180+1"]
[Date "2022.12.13"]
[WhiteClock "0:01:02"]
[BlackClock "0:00:17"]

1. c4 {[%clk 0:02:49]}  e6 {[%clk 0:02:59]} 2. Nc3 {[%clk 0:02:49]}  d5 {[%clk 0:02:59]} 3. d4 {[%clk 0:02:49]}  c5 {[%clk 0:02:59]} 4. dxc5 {[%clk 0:02:45]}  d4 {[%clk 0:02:58]} 5. Na4 {[%clk 0:02:44]}  Bxc5 {[%clk 0:02:40]} 6. Nxc5 {[%clk 0:02:41]}  Qa5+ {[%clk 0:02:40]} 7. Bd2 {[%clk 0:02:31]}  Qxc5 {[%clk 0:02:40]} 8. e3 {[%clk 0:02:31]}  e5 {[%clk 0:02:38]} 9. Nf3 {[%clk 0:02:31]}  Nc6 {[%clk 0:02:38]} 10. exd4 {[%clk 0:02:25]}  exd4 {[%clk 0:02:38]} 11. Bd3 {[%clk 0:02:24]}  Nge7 {[%clk 0:02:38]} 12. O-O {[%clk 0:02:25]}  O-O {[%clk 0:02:37]} 13. Re1 {[%clk 0:02:25]}  Bf5 {[%clk 0:02:13]} 14. b4 {[%clk 0:02:23]}  Qd6 {[%clk 0:02:06]} 15. c5 {[%clk 0:01:58]}  Qd5 {[%clk 0:02:02]} 16. Qc2 {[%clk 0:01:54]}  a6 {[%clk 0:01:49]} 17. a4 {[%clk 0:01:54]}  Bxd3 {[%clk 0:01:42]} 18. Qxd3 {[%clk 0:01:54]}  Ng6 {[%clk 0:01:41]} 19. Qe4 {[%clk 0:01:25]}  Qc4 {[%clk 0:01:01]} 20. Rec1 {[%clk 0:01:19]}  Rae8 {[%clk 0:00:45]} 21. Qxe8 {[%clk 0:01:07]}  Qxc1+ {[%clk 0:00:45]} 22. Rxc1 {[%clk 0:01:08]}  Rxe8 {[%clk 0:00:45]} 23. b5 {[%clk 0:01:09]}  axb5 {[%clk 0:00:46]} 24. axb5 {[%clk 0:01:10]}  Nce5 {[%clk 0:00:43]} 25. Nxd4 {[%clk 0:01:10]}  Nd3 {[%clk 0:00:40]} 26. Rc3 {[%clk 0:01:09]}  Nge5 {[%clk 0:00:18]} 27. f4 {[%clk 0:01:07]}  Ra8 {[%clk 0:00:17]} 28. Nb3 {[%clk 0:01:02]} 1-0


[Site "https://www.chess.com"]

[Event "Titled Tuesday Blitz December 13 Late 2022"]
[White "Yanchenko, Roman"]
[Black "Fernandez De La Vara, Arnaldo"]
[WhiteFideId "4137329"]
[BlackFideId "3518388"]
[WhiteElo "2491"]
[BlackElo "2387"]
[Result "0-1"]
[Round "05"]
[TimeControl "180+1"]
[Date "2022.12.13"]
[WhiteClock "0:01:00"]
[BlackClock "0:00:03"]

1. d4 {[%clk 0:03:00]}  c5 {[%clk 0:03:00]} 2. e3 {[%clk 0:02:58]}  Nf6 {[%clk 0:03:01]} 3. Nf3 {[%clk 0:02:59]}  d5 {[%clk 0:03:01]} 4. a3 {[%clk 0:02:58]}  cxd4 {[%clk 0:03:00]} 5. exd4 {[%clk 0:02:58]}  Nc6 {[%clk 0:03:01]} 6. c4 {[%clk 0:02:58]}  g6 {[%clk 0:02:59]} 7. h3 {[%clk 0:02:58]}  Bg7 {[%clk 0:02:59]} 8. Nc3 {[%clk 0:02:58]}  O-O {[%clk 0:02:59]} 9. Be3 {[%clk 0:02:58]}  b6 {[%clk 0:02:56]} 10. Rc1 {[%clk 0:02:57]}  Bb7 {[%clk 0:02:55]} 11. cxd5 {[%clk 0:02:57]}  Nxd5 {[%clk 0:02:56]} 12. Nxd5 {[%clk 0:02:57]}  Qxd5 {[%clk 0:02:57]} 13. Bc4 {[%clk 0:02:58]}  Qd6 {[%clk 0:02:55]} 14. O-O {[%clk 0:02:52]}  Rfd8 {[%clk 0:02:49]} 15. Qe2 {[%clk 0:02:52]}  Rac8 {[%clk 0:02:33]} 16. Rfd1 {[%clk 0:02:51]}  Qb8 {[%clk 0:01:22]} 17. Bg5 {[%clk 0:02:26]}  Bf6 {[%clk 0:00:42]} 18. Bxf6 {[%clk 0:01:56]}  exf6 {[%clk 0:00:43]} 19. Ba2 {[%clk 0:01:57]}  Qf4 {[%clk 0:00:35]} 20. d5 {[%clk 0:01:54]}  Nd4 {[%clk 0:00:29]} 21. Qe3 {[%clk 0:01:32]}  Qxe3 {[%clk 0:00:27]} 22. Rxc8 {[%clk 0:01:26]}  Nxf3+ {[%clk 0:00:25]} 23. gxf3 {[%clk 0:01:26]}  Qe8 {[%clk 0:00:18]} 24. Rc7 {[%clk 0:01:22]}  Rd7 {[%clk 0:00:17]} 25. d6 {[%clk 0:01:22]}  Qd8 {[%clk 0:00:12]} 26. Rdc1 {[%clk 0:01:20]}  Ba6 {[%clk 0:00:05]} 27. b4 {[%clk 0:01:16]}  Rxd6 {[%clk 0:00:04]} 28. Bxf7+ {[%clk 0:01:15]}  Kh8 {[%clk 0:00:03]} 29. b5 {[%clk 0:01:14]}  Rd1+ {[%clk 0:00:03]} 30. Kg2 {[%clk 0:01:04]}  Rxc1 {[%clk 0:00:03]} 31. Rxc1 {[%clk 0:01:04]}  Bxb5 {[%clk 0:00:03]} 32. Be6 {[%clk 0:01:05]}  Qe7 {[%clk 0:00:02]} 33. Bd5 {[%clk 0:01:04]}  Kg7 {[%clk 0:00:03]} 34. f4 {[%clk 0:01:02]}  Bd7 {[%clk 0:00:03]} 35. Rc7 {[%clk 0:01:01]}  Qd6 {[%clk 0:00:04]} 36. Rxa7 {[%clk 0:00:57]}  Qxd5+ {[%clk 0:00:04]} 37. Kg3 {[%clk 0:00:58]}  Kh6 {[%clk 0:00:04]} 38. f3 {[%clk 0:00:59]}  Bc6 {[%clk 0:00:03]} 39. f5 {[%clk 0:01:00]}  Qxf3+ {[%clk 0:00:03]} 40. Kh4 {[%clk 0:01:00]}  Qf4# {[%clk 0:00:03]} 0-1


[Site "https://www.chess.com"]

[Event "Titled Tuesday Blitz December 13 Late 2022"]
[White "Zhu, Jiner"]
[Black "Bernat, David"]
[WhiteFideId "8608059"]
[BlackFideId "2099225"]
[WhiteElo "2384"]
[BlackElo "2302"]
[Result "0-1"]
[Round "05"]
[TimeControl "180+1"]
[Date "2022.12.14"]
[WhiteClock "0:00:14"]
[BlackClock "0:00:03"]

1. g3 {[%clk 0:03:00]}  c5 {[%clk 0:02:56]} 2. Bg2 {[%clk 0:02:59]}  g6 {[%clk 0:02:56]} 3. f4 {[%clk 0:02:59]}  Bg7 {[%clk 0:02:56]} 4. Nf3 {[%clk 0:02:59]}  Nc6 {[%clk 0:02:57]} 5. O-O {[%clk 0:03:00]}  d6 {[%clk 0:02:57]} 6. d3 {[%clk 0:03:01]}  e6 {[%clk 0:02:57]} 7. e4 {[%clk 0:03:00]}  Nge7 {[%clk 0:02:57]} 8. Nc3 {[%clk 0:03:00]}  O-O {[%clk 0:02:57]} 9. Be3 {[%clk 0:03:00]}  Nd4 {[%clk 0:02:56]} 10. Kh1 {[%clk 0:03:00]}  Nec6 {[%clk 0:02:55]} 11. Rb1 {[%clk 0:02:59]}  Rb8 {[%clk 0:02:51]} 12. Ne2 {[%clk 0:02:59]}  Nxf3 {[%clk 0:02:48]} 13. Bxf3 {[%clk 0:02:59]}  Nd4 {[%clk 0:02:48]} 14. Bg2 {[%clk 0:02:59]}  b5 {[%clk 0:02:45]} 15. c3 {[%clk 0:02:59]}  Nxe2 {[%clk 0:02:45]} 16. Qxe2 {[%clk 0:03:00]}  b4 {[%clk 0:02:44]} 17. d4 {[%clk 0:03:00]}  bxc3 {[%clk 0:02:39]} 18. bxc3 {[%clk 0:03:01]}  Rxb1 {[%clk 0:02:38]} 19. Rxb1 {[%clk 0:03:00]}  Qa5 {[%clk 0:02:32]} 20. Qc2 {[%clk 0:02:52]}  cxd4 {[%clk 0:02:27]} 21. cxd4 {[%clk 0:02:52]}  Ba6 {[%clk 0:02:25]} 22. h3 {[%clk 0:02:48]}  Rc8 {[%clk 0:02:25]} 23. Qf2 {[%clk 0:02:48]}  Bd3 {[%clk 0:02:17]} 24. Rb3 {[%clk 0:02:46]}  Bc4 {[%clk 0:02:15]} 25. Rb2 {[%clk 0:02:46]}  d5 {[%clk 0:02:10]} 26. e5 {[%clk 0:02:46]}  Bf8 {[%clk 0:02:04]} 27. g4 {[%clk 0:02:45]}  Ba3 {[%clk 0:02:03]} 28. Rc2 {[%clk 0:02:45]}  Rb8 {[%clk 0:02:02]} 29. Kh2 {[%clk 0:02:44]}  Bd3 {[%clk 0:01:52]} 30. Rd2 {[%clk 0:02:34]}  Bc4 {[%clk 0:01:52]} 31. f5 {[%clk 0:02:28]}  Bc1 {[%clk 0:01:49]} 32. Rc2 {[%clk 0:02:28]}  Bxe3 {[%clk 0:01:47]} 33. Qxe3 {[%clk 0:02:29]}  Rb1 {[%clk 0:01:42]} 34. f6 {[%clk 0:02:23]}  Qb4 {[%clk 0:01:13]} 35. a3 {[%clk 0:02:16]}  Rb3 {[%clk 0:01:04]} 36. Rb2 {[%clk 0:01:45]}  Qxa3 {[%clk 0:00:42]} 37. Rxb3 {[%clk 0:01:45]}  Bxb3 {[%clk 0:00:43]} 38. Bf1 {[%clk 0:01:23]}  a5 {[%clk 0:00:35]} 39. Bb5 {[%clk 0:01:23]}  Qb2+ {[%clk 0:00:31]} 40. Kg3 {[%clk 0:01:22]}  Qb1 {[%clk 0:00:07]} 41. Be2 {[%clk 0:00:52]}  Qe1+ {[%clk 0:00:06]} 42. Kf3 {[%clk 0:00:49]}  Bc4 {[%clk 0:00:04]} 43. Bxc4 {[%clk 0:00:28]}  Qxe3+ {[%clk 0:00:03]} 44. Kxe3 {[%clk 0:00:29]}  dxc4 {[%clk 0:00:04]} 45. Kd2 {[%clk 0:00:25]}  a4 {[%clk 0:00:04]} 46. Kc2 {[%clk 0:00:25]}  a3 {[%clk 0:00:02]} 47. Kc3 {[%clk 0:00:24]}  Kf8 {[%clk 0:00:02]} 48. g5 {[%clk 0:00:24]}  Ke8 {[%clk 0:00:02]} 49. h4 {[%clk 0:00:20]}  Kd7 {[%clk 0:00:02]} 50. Kc2 {[%clk 0:00:13]}  Kc6 {[%clk 0:00:02]} 51. Kd2 {[%clk 0:00:13]}  Kd5 {[%clk 0:00:03]} 52. Kc3 {[%clk 0:00:13]}  a2 {[%clk 0:00:02]} 53. Kb2 {[%clk 0:00:14]}  Kxd4 {[%clk 0:00:03]} 0-1


[Site "https://www.chess.com"]

[Event "Titled Tuesday Blitz December 13 Late 2022"]
[White "Abdrlauf, Elham"]
[Black "Xiong, Jeffery"]
[WhiteFideId "1533533"]
[BlackFideId "2047640"]
[WhiteElo "2454"]
[BlackElo "2726"]
[Result "0-1"]
[Round "06"]
[TimeControl "180+1"]
[Date "2022.12.13"]
[WhiteClock "0:00:02"]
[BlackClock "0:01:18"]

1. e4 {[%clk 0:03:00]}  c6 {[%clk 0:02:49]} 2. d4 {[%clk 0:03:01]}  d5 {[%clk 0:02:50]} 3. Nc3 {[%clk 0:03:02]}  dxe4 {[%clk 0:02:50]} 4. Nxe4 {[%clk 0:03:03]}  Nf6 {[%clk 0:02:51]} 5. Nxf6+ {[%clk 0:03:03]}  exf6 {[%clk 0:02:52]} 6. Bd3 {[%clk 0:03:04]}  Qxd4 {[%clk 0:02:50]} 7. Nf3 {[%clk 0:03:04]}  Qb6 {[%clk 0:02:43]} 8. O-O {[%clk 0:03:05]}  Be6 {[%clk 0:02:43]} 9. Re1 {[%clk 0:02:44]}  Nd7 {[%clk 0:02:43]} 10. Nd4 {[%clk 0:02:36]}  Ne5 {[%clk 0:02:18]} 11. Nxe6 {[%clk 0:02:15]}  fxe6 {[%clk 0:02:19]} 12. Rxe5 {[%clk 0:02:06]}  fxe5 {[%clk 0:02:19]} 13. Qh5+ {[%clk 0:02:07]}  Kd7 {[%clk 0:01:57]} 14. Qf7+ {[%clk 0:01:45]}  Be7 {[%clk 0:01:49]} 15. Bg5 {[%clk 0:01:46]}  Rae8 {[%clk 0:01:49]} 16. Rd1 {[%clk 0:01:43]}  Rhf8 {[%clk 0:01:35]} 17. Bf5+ {[%clk 0:00:36]}  Kc7 {[%clk 0:01:35]} 18. Qxe6 {[%clk 0:00:36]}  Bc5 {[%clk 0:01:34]} 19. Qd7+ {[%clk 0:00:02]}  Kb8 {[%clk 0:01:34]} 20. Kh1 {[%clk 0:00:01]}  h6 {[%clk 0:01:17]} 21. Bh4 {[%clk 0:00:01]}  g5 {[%clk 0:01:17]} 22. Bg3 {[%clk 0:00:02]}  Rd8 {[%clk 0:01:18]} 23. Bxe5+ {[%clk 0:00:02]}  Ka8 {[%clk 0:01:18]} 0-1


[Site "https://www.chess.com"]

[Event "Titled Tuesday Blitz December 13 Late 2022"]
[White "Antonova, Nadezhda"]
[Black "D`Arruda, Ricardo D."]
[WhiteFideId "14700182"]
[BlackFideId "100692"]
[WhiteElo "1814"]
[BlackElo "2411"]
[Result "1/2-1/2"]
[Round "06"]
[TimeControl "180+1"]
[Date "2022.12.14"]
[WhiteClock "0:01:42"]
[BlackClock "0:01:31"]

1. Nf3 {[%clk 0:02:59]}  d5 {[%clk 0:02:59]} 2. b3 {[%clk 0:02:59]}  Nf6 {[%clk 0:02:59]} 3. Bb2 {[%clk 0:03:00]}  c5 {[%clk 0:02:58]} 4. e3 {[%clk 0:02:59]}  Nc6 {[%clk 0:02:57]} 5. Bb5 {[%clk 0:02:59]}  Bd7 {[%clk 0:02:57]} 6. Bxc6 {[%clk 0:02:58]}  Bxc6 {[%clk 0:02:58]} 7. Ne5 {[%clk 0:02:59]}  Qc7 {[%clk 0:02:57]} 8. O-O {[%clk 0:02:58]}  g6 {[%clk 0:02:55]} 9. d3 {[%clk 0:02:52]}  Bg7 {[%clk 0:02:54]} 10. f4 {[%clk 0:02:49]}  O-O {[%clk 0:02:52]} 11. Nd2 {[%clk 0:02:49]}  Rad8 {[%clk 0:02:45]} 12. Qe2 {[%clk 0:02:47]}  Nd7 {[%clk 0:02:30]} 13. Nxd7 {[%clk 0:02:43]}  Bxb2 {[%clk 0:02:25]} 14. Nxf8 {[%clk 0:02:41]}  Bxa1 {[%clk 0:02:23]} 15. Rxa1 {[%clk 0:02:42]}  Kxf8 {[%clk 0:02:19]} 16. Re1 {[%clk 0:02:40]}  e5 {[%clk 0:02:17]} 17. fxe5 {[%clk 0:02:38]}  Qxe5 {[%clk 0:02:18]} 18. Qf2 {[%clk 0:02:35]}  Kg7 {[%clk 0:02:11]} 19. e4 {[%clk 0:02:32]}  dxe4 {[%clk 0:02:09]} 20. Nxe4 {[%clk 0:02:31]}  Bxe4 {[%clk 0:02:09]} 21. dxe4 {[%clk 0:02:31]}  Rd4 {[%clk 0:02:03]} 22. Qe3 {[%clk 0:02:19]}  b6 {[%clk 0:02:01]} 23. a4 {[%clk 0:02:18]}  h6 {[%clk 0:02:00]} 24. h3 {[%clk 0:02:16]}  Rd6 {[%clk 0:01:56]} 25. Qf2 {[%clk 0:02:04]}  Rf6 {[%clk 0:01:49]} 26. Qd2 {[%clk 0:01:59]}  Rd6 {[%clk 0:01:43]} 27. Qf2 {[%clk 0:01:59]}  Qd4 {[%clk 0:01:40]} 28. Re2 {[%clk 0:01:44]}  Qe5 {[%clk 0:01:31]} 29. Re1 {[%clk 0:01:42]} 1/2-1/2


[Site "https://www.chess.com"]

[Event "Titled Tuesday Blitz December 13 Late 2022"]
[White "Banzea, Alexandru-Bogdan"]
[Black "Bryant, Todd"]
[WhiteFideId "1232622"]
[BlackFideId "2031299"]
[WhiteElo "2294"]
[BlackElo "2333"]
[Result "1-0"]
[Round "06"]
[TimeControl "180+1"]
[Date "2022.12.14"]
[WhiteClock "0:00:55"]
[BlackClock "0:00:07"]

1. d4 {[%clk 0:03:00]}  Nf6 {[%clk 0:02:58]} 2. Bf4 {[%clk 0:02:59]}  g6 {[%clk 0:02:56]} 3. Nc3 {[%clk 0:02:59]}  d5 {[%clk 0:02:56]} 4. e3 {[%clk 0:02:59]}  Bg7 {[%clk 0:02:55]} 5. h4 {[%clk 0:03:00]}  h5 {[%clk 0:02:55]} 6. Nf3 {[%clk 0:03:00]}  O-O {[%clk 0:02:55]} 7. Ne5 {[%clk 0:03:01]}  c5 {[%clk 0:02:53]} 8. dxc5 {[%clk 0:03:01]}  Nbd7 {[%clk 0:02:49]} 9. Nxd7 {[%clk 0:02:53]}  Bxd7 {[%clk 0:02:38]} 10. Be5 {[%clk 0:02:53]}  Qa5 {[%clk 0:02:32]} 11. Qd4 {[%clk 0:02:41]}  Rac8 {[%clk 0:02:16]} 12. b4 {[%clk 0:02:33]}  Qa3 {[%clk 0:02:11]} 13. Bb5 {[%clk 0:02:20]}  Bxb5 {[%clk 0:01:31]} 14. Nxb5 {[%clk 0:02:21]}  Qa4 {[%clk 0:01:32]} 15. Nc3 {[%clk 0:02:10]}  Qxc2 {[%clk 0:01:15]} 16. O-O {[%clk 0:02:10]}  Rfd8 {[%clk 0:01:08]} 17. Rac1 {[%clk 0:02:07]}  Qf5 {[%clk 0:01:05]} 18. Rfd1 {[%clk 0:02:08]}  e6 {[%clk 0:00:55]} 19. e4 {[%clk 0:01:57]}  dxe4 {[%clk 0:00:46]} 20. Qxd8+ {[%clk 0:01:54]}  Rxd8 {[%clk 0:00:46]} 21. Rxd8+ {[%clk 0:01:54]}  Kh7 {[%clk 0:00:46]} 22. Bg3 {[%clk 0:01:28]}  Nd5 {[%clk 0:00:34]} 23. Nxd5 {[%clk 0:01:10]}  exd5 {[%clk 0:00:34]} 24. b5 {[%clk 0:01:08]}  Bd4 {[%clk 0:00:20]} 25. c6 {[%clk 0:01:06]}  bxc6 {[%clk 0:00:20]} 26. bxc6 {[%clk 0:01:06]}  Bb6 {[%clk 0:00:20]} 27. c7 {[%clk 0:01:03]}  Bxc7 {[%clk 0:00:14]} 28. Rxc7 {[%clk 0:01:04]}  e3 {[%clk 0:00:12]} 29. fxe3 {[%clk 0:01:01]}  Kg7 {[%clk 0:00:10]} 30. Rdd7 {[%clk 0:01:01]}  Qb1+ {[%clk 0:00:09]} 31. Kh2 {[%clk 0:00:59]}  Kh6 {[%clk 0:00:09]} 32. Rxf7 {[%clk 0:00:56]}  g5 {[%clk 0:00:07]} 33. Rc6+ {[%clk 0:00:55]} 1-0


[Site "https://www.chess.com"]

[Event "Titled Tuesday Blitz December 13 Late 2022"]
[White "Bernat, David"]
[Black "Kaplan, Avi Harrison"]
[WhiteFideId "2099225"]
[BlackFideId "30934559"]
[WhiteElo "2316"]
[BlackElo "1983"]
[Result "0-1"]
[Round "06"]
[TimeControl "180+1"]
[Date "2022.12.14"]
[WhiteClock "0:00:02"]
[BlackClock "0:00:45"]

1. c4 {[%clk 0:03:00]}  c5 {[%clk 0:02:57]} 2. Nc3 {[%clk 0:03:01]}  Nc6 {[%clk 0:02:58]} 3. g3 {[%clk 0:03:01]}  e5 {[%clk 0:02:57]} 4. Bg2 {[%clk 0:03:01]}  d6 {[%clk 0:02:58]} 5. d3 {[%clk 0:03:01]}  f5 {[%clk 0:02:58]} 6. e4 {[%clk 0:03:01]}  Nf6 {[%clk 0:02:57]} 7. Nge2 {[%clk 0:03:00]}  Be7 {[%clk 0:02:57]} 8. O-O {[%clk 0:03:00]}  h6 {[%clk 0:02:56]} 9. exf5 {[%clk 0:03:01]}  Bxf5 {[%clk 0:02:56]} 10. f4 {[%clk 0:03:01]}  Bh7 {[%clk 0:02:44]} 11. fxe5 {[%clk 0:02:39]}  dxe5 {[%clk 0:02:39]} 12. Nd5 {[%clk 0:02:38]}  O-O {[%clk 0:02:32]} 13. Nec3 {[%clk 0:02:38]}  Nxd5 {[%clk 0:02:23]} 14. Nxd5 {[%clk 0:02:27]}  Nb4 {[%clk 0:02:20]} 15. Bd2 {[%clk 0:02:10]}  Nxd3 {[%clk 0:02:15]} 16. Qg4 {[%clk 0:02:06]}  Qd6 {[%clk 0:01:58]} 17. Bxh6 {[%clk 0:01:33]}  Qxh6 {[%clk 0:01:48]} 18. Nxe7+ {[%clk 0:01:33]}  Kh8 {[%clk 0:01:49]} 19. Nd5 {[%clk 0:00:40]}  Nxb2 {[%clk 0:01:30]} 20. Rab1 {[%clk 0:00:36]}  Bxb1 {[%clk 0:01:28]} 21. Rxb1 {[%clk 0:00:35]}  Nd3 {[%clk 0:01:23]} 22. Be4 {[%clk 0:00:11]}  Nf2 {[%clk 0:01:16]} 23. Qg6 {[%clk 0:00:10]}  Nh3+ {[%clk 0:01:08]} 24. Kh1 {[%clk 0:00:06]}  Nf2+ {[%clk 0:00:53]} 25. Kg2 {[%clk 0:00:05]}  Nxe4 {[%clk 0:00:54]} 26. Qxe4 {[%clk 0:00:04]}  Qd2+ {[%clk 0:00:55]} 27. Kh3 {[%clk 0:00:04]}  Rf2 {[%clk 0:00:51]} 28. Qh4+ {[%clk 0:00:02]}  Kg8 {[%clk 0:00:45]} 0-1


[Site "https://www.chess.com"]

[Event "Titled Tuesday Blitz December 13 Late 2022"]
[White "Bogaudinov, Rushan"]
[Black "Toncheva, Nadya"]
[WhiteFideId "4129288"]
[BlackFideId "2924056"]
[WhiteElo "2028"]
[BlackElo "2101"]
[Result "0-1"]
[Round "06"]
[TimeControl "180+1"]
[Date "2022.12.14"]
[WhiteClock "0:00:08"]
[BlackClock "0:00:24"]

1. a3 {[%clk 0:02:39]}  e5 {[%clk 0:02:58]} 2. e3 {[%clk 0:02:39]}  c5 {[%clk 0:02:58]} 3. d4 {[%clk 0:02:37]}  exd4 {[%clk 0:02:52]} 4. exd4 {[%clk 0:02:37]}  Nf6 {[%clk 0:02:48]} 5. Nf3 {[%clk 0:02:35]}  d5 {[%clk 0:02:47]} 6. Bb5+ {[%clk 0:02:32]}  Nc6 {[%clk 0:02:46]} 7. O-O {[%clk 0:02:32]}  Be7 {[%clk 0:02:40]} 8. dxc5 {[%clk 0:02:29]}  O-O {[%clk 0:02:33]} 9. b4 {[%clk 0:02:18]}  Bg4 {[%clk 0:02:33]} 10. Be2 {[%clk 0:02:11]}  Ne4 {[%clk 0:02:28]} 11. Bb2 {[%clk 0:02:09]}  Bf6 {[%clk 0:02:27]} 12. c3 {[%clk 0:02:01]}  Re8 {[%clk 0:02:23]} 13. h3 {[%clk 0:01:57]}  Bh5 {[%clk 0:02:21]} 14. Re1 {[%clk 0:01:51]}  a6 {[%clk 0:02:04]} 15. Nd4 {[%clk 0:01:47]}  Bg6 {[%clk 0:01:59]} 16. Bf3 {[%clk 0:01:37]}  Qc7 {[%clk 0:01:55]} 17. Bxe4 {[%clk 0:01:27]}  dxe4 {[%clk 0:01:53]} 18. Nd2 {[%clk 0:01:22]}  Rad8 {[%clk 0:01:48]} 19. N2b3 {[%clk 0:01:22]}  Ne5 {[%clk 0:01:46]} 20. Qe2 {[%clk 0:01:07]}  Nd3 {[%clk 0:01:42]} 21. Red1 {[%clk 0:00:59]}  Bh4 {[%clk 0:01:03]} 22. Rf1 {[%clk 0:00:54]}  Rd5 {[%clk 0:00:47]} 23. Bc1 {[%clk 0:00:54]}  Bg5 {[%clk 0:00:39]} 24. Bxg5 {[%clk 0:00:37]}  Rxg5 {[%clk 0:00:40]} 25. Qe3 {[%clk 0:00:34]}  Nf4 {[%clk 0:00:36]} 26. g4 {[%clk 0:00:22]}  h5 {[%clk 0:00:31]} 27. Qg3 {[%clk 0:00:20]}  hxg4 {[%clk 0:00:27]} 28. hxg4 {[%clk 0:00:20]}  Bh5 {[%clk 0:00:26]} 29. f3 {[%clk 0:00:18]}  exf3 {[%clk 0:00:24]} 30. Qxf3 {[%clk 0:00:18]}  Rxg4+ {[%clk 0:00:23]} 31. Kf2 {[%clk 0:00:10]}  Nd3+ {[%clk 0:00:23]} 32. Qxd3 {[%clk 0:00:10]}  Qh2+ {[%clk 0:00:24]} 33. Kf3 {[%clk 0:00:08]}  Rf4# {[%clk 0:00:24]} 0-1


[Site "https://www.chess.com"]

[Event "Titled Tuesday Blitz December 13 Late 2022"]
[White "Buchenau, Frank"]
[Black "Espinosa, Pedro"]
[WhiteFideId "4604350"]
[BlackFideId "30921066"]
[WhiteElo "2157"]
[BlackElo "2016"]
[Result "1-0"]
[Round "06"]
[TimeControl "180+1"]
[Date "2022.12.14"]
[WhiteClock "0:00:04"]
[BlackClock "0:00:01"]

1. e4 {[%clk 0:02:50]}  c5 {[%clk 0:02:59]} 2. Nf3 {[%clk 0:02:50]}  d6 {[%clk 0:03:00]} 3. Bb5+ {[%clk 0:02:49]}  Bd7 {[%clk 0:03:00]} 4. Bxd7+ {[%clk 0:02:49]}  Nxd7 {[%clk 0:03:01]} 5. O-O {[%clk 0:02:48]}  Ngf6 {[%clk 0:03:01]} 6. Qe2 {[%clk 0:02:48]}  e6 {[%clk 0:03:01]} 7. d4 {[%clk 0:02:49]}  cxd4 {[%clk 0:03:01]} 8. Nxd4 {[%clk 0:02:50]}  Be7 {[%clk 0:03:01]} 9. c4 {[%clk 0:02:50]}  O-O {[%clk 0:03:02]} 10. b3 {[%clk 0:02:49]}  a6 {[%clk 0:03:01]} 11. Bb2 {[%clk 0:02:49]}  Rc8 {[%clk 0:03:01]} 12. Nc3 {[%clk 0:02:50]}  Qa5 {[%clk 0:02:59]} 13. Rad1 {[%clk 0:02:45]}  Ne5 {[%clk 0:02:52]} 14. f4 {[%clk 0:02:39]}  Nc6 {[%clk 0:02:39]} 15. Nxc6 {[%clk 0:02:30]}  Rxc6 {[%clk 0:02:40]} 16. e5 {[%clk 0:02:27]}  Nd7 {[%clk 0:02:20]} 17. Rf3 {[%clk 0:01:54]}  Qc7 {[%clk 0:02:03]} 18. Rfd3 {[%clk 0:01:33]}  Nc5 {[%clk 0:02:02]} 19. R3d2 {[%clk 0:01:16]}  dxe5 {[%clk 0:02:02]} 20. fxe5 {[%clk 0:01:15]}  Bg5 {[%clk 0:01:13]} 21. Rd4 {[%clk 0:01:14]}  Qb6 {[%clk 0:01:06]} 22. Kh1 {[%clk 0:01:08]}  h6 {[%clk 0:00:57]} 23. Ne4 {[%clk 0:00:58]}  Nxe4 {[%clk 0:00:55]} 24. Qxe4 {[%clk 0:00:59]}  Rfc8 {[%clk 0:00:51]} 25. Rd7 {[%clk 0:00:56]}  Qf2 {[%clk 0:00:47]} 26. Bd4 {[%clk 0:00:42]}  Qxa2 {[%clk 0:00:41]} 27. Rf1 {[%clk 0:00:41]}  Rf8 {[%clk 0:00:28]} 28. Rxb7 {[%clk 0:00:41]}  Rcc8 {[%clk 0:00:26]} 29. Ra1 {[%clk 0:00:33]}  Qd2 {[%clk 0:00:23]} 30. h4 {[%clk 0:00:27]}  Rcd8 {[%clk 0:00:21]} 31. Bc5 {[%clk 0:00:23]}  Qc3 {[%clk 0:00:15]} 32. Rf1 {[%clk 0:00:17]}  Bd2 {[%clk 0:00:06]} 33. Bxf8 {[%clk 0:00:14]}  Rxf8 {[%clk 0:00:07]} 34. Rf3 {[%clk 0:00:11]}  Qc1+ {[%clk 0:00:07]} 35. Kh2 {[%clk 0:00:11]}  Be1 {[%clk 0:00:06]} 36. Qe3 {[%clk 0:00:10]}  Bd2 {[%clk 0:00:06]} 37. Qe4 {[%clk 0:00:09]}  Qd1 {[%clk 0:00:06]} 38. c5 {[%clk 0:00:08]}  Ba5 {[%clk 0:00:05]} 39. c6 {[%clk 0:00:08]}  Qd8 {[%clk 0:00:05]} 40. Rd3 {[%clk 0:00:06]}  Qc8 {[%clk 0:00:04]} 41. Rdd7 {[%clk 0:00:06]}  Bd8 {[%clk 0:00:03]} 42. Qf3 {[%clk 0:00:06]}  f6 {[%clk 0:00:02]} 43. exf6 {[%clk 0:00:06]}  Bxf6 {[%clk 0:00:03]} 44. Qe4 {[%clk 0:00:05]}  Qa8 {[%clk 0:00:02]} 45. Ra7 {[%clk 0:00:05]}  Qc8 {[%clk 0:00:02]} 46. Qg6 {[%clk 0:00:04]}  Qe8 {[%clk 0:00:02]} 47. Rxg7+ {[%clk 0:00:04]}  Bxg7 {[%clk 0:00:01]} 48. Qxg7# {[%clk 0:00:04]} 1-0


[Site "https://www.chess.com"]